[Event "Titled Tuesday Blitz May 31 Late 2022"]
[White "Fishbein, Alexander"]
[Black "Bringas Gomez, Artai"]
[WhiteFideId "2000377"]
[BlackFideId "24534064"]
[WhiteElo "2442"]
[BlackElo "1952"]
[Result "1-0"]
[Round "08"]
[TimeControl "180+1"]
[Date "2022.06.01"]
[WhiteClock "0:00:43"]
[BlackClock "0:00:04"]

1. e4 {[%clk 0:03:00]}  c5 {[%clk 0:02:56]} 2. Nf3 {[%clk 0:03:00]}  d6 {[%clk 0:02:57]} 3. d4 {[%clk 0:02:58]}  cxd4 {[%clk 0:02:58]} 4. Nxd4 {[%clk 0:02:58]}  Nf6 {[%clk 0:02:58]} 5. Nc3 {[%clk 0:02:59]}  g6 {[%clk 0:02:57]} 6. Be2 {[%clk 0:02:58]}  Bg7 {[%clk 0:02:58]} 7. O-O {[%clk 0:02:58]}  O-O {[%clk 0:02:58]} 8. Nb3 {[%clk 0:02:59]}  Nc6 {[%clk 0:02:58]} 9. Bg5 {[%clk 0:02:59]}  a6 {[%clk 0:02:52]} 10. a4 {[%clk 0:02:57]}  Rb8 {[%clk 0:02:51]} 11. f4 {[%clk 0:02:56]}  b5 {[%clk 0:02:43]} 12. axb5 {[%clk 0:02:55]}  axb5 {[%clk 0:02:42]} 13. Bf3 {[%clk 0:02:54]}  b4 {[%clk 0:02:35]} 14. Nd5 {[%clk 0:02:52]}  Nxd5 {[%clk 0:02:35]} 15. exd5 {[%clk 0:02:50]}  Na7 {[%clk 0:02:29]} 16. Qe2 {[%clk 0:02:23]}  Rb7 {[%clk 0:01:43]} 17. Qe3 {[%clk 0:02:02]}  Nb5 {[%clk 0:01:40]} 18. Kh1 {[%clk 0:01:53]}  Bxb2 {[%clk 0:01:38]} 19. Ra8 {[%clk 0:01:51]}  f6 {[%clk 0:01:29]} 20. Bh6 {[%clk 0:01:49]}  Re8 {[%clk 0:01:18]} 21. Na5 {[%clk 0:01:46]}  Qd7 {[%clk 0:00:29]} 22. Nxb7 {[%clk 0:01:35]}  Qxb7 {[%clk 0:00:30]} 23. Ra5 {[%clk 0:01:25]}  Nd4 {[%clk 0:00:14]} 24. Be4 {[%clk 0:01:07]}  Bf5 {[%clk 0:00:11]} 25. Bxf5 {[%clk 0:01:05]}  Nxf5 {[%clk 0:00:12]} 26. Qe6+ {[%clk 0:01:05]}  Kh8 {[%clk 0:00:12]} 27. Qf7 {[%clk 0:00:53]}  Rg8 {[%clk 0:00:12]} 28. Bf8 {[%clk 0:00:47]}  Qb6 {[%clk 0:00:06]} 29. Ra8 {[%clk 0:00:45]}  Qf2 {[%clk 0:00:04]} 30. Bg7+ {[%clk 0:00:44]}  Nxg7 {[%clk 0:00:04]} 31. Qxg8# {[%clk 0:00:43]} 1-0


[Site "https://www.chess.com"]

[Event "Titled Tuesday Blitz May 31 Late 2022"]
[White "Golubev, Mikhail"]
[Black "Papasimakopoulos, Alexandros"]
[WhiteFideId "14100983"]
[BlackFideId "4244125"]
[WhiteElo "2374"]
[BlackElo "2340"]
[Result "1-0"]
[Round "08"]
[TimeControl "180+1"]
[Date "2022.05.31"]
[WhiteClock "0:00:08"]
[BlackClock "0:00:10"]

1. e4 {[%clk 0:03:00]}  e6 {[%clk 0:01:38]} 2. d4 {[%clk 0:02:59]}  d5 {[%clk 0:01:38]} 3. Nc3 {[%clk 0:03:00]}  Bb4 {[%clk 0:01:38]} 4. e5 {[%clk 0:03:00]}  b6 {[%clk 0:01:39]} 5. a3 {[%clk 0:02:57]}  Bf8 {[%clk 0:01:40]} 6. Nf3 {[%clk 0:02:55]}  Ne7 {[%clk 0:01:40]} 7. Bb5+ {[%clk 0:02:54]}  c6 {[%clk 0:01:41]} 8. Ba4 {[%clk 0:02:54]}  a5 {[%clk 0:01:41]} 9. Ne2 {[%clk 0:02:48]}  Ba6 {[%clk 0:01:36]} 10. c3 {[%clk 0:02:45]}  Nd7 {[%clk 0:01:36]} 11. O-O {[%clk 0:02:44]}  Qc7 {[%clk 0:01:36]} 12. Re1 {[%clk 0:02:37]}  Bb5 {[%clk 0:01:32]} 13. Bc2 {[%clk 0:02:36]}  c5 {[%clk 0:01:32]} 14. Nf4 {[%clk 0:02:33]}  Ng6 {[%clk 0:01:31]} 15. Nh5 {[%clk 0:02:25]}  Ne7 {[%clk 0:01:31]} 16. Bf4 {[%clk 0:01:42]}  g6 {[%clk 0:01:29]} 17. Ng3 {[%clk 0:01:41]}  Nf5 {[%clk 0:01:29]} 18. Bxf5 {[%clk 0:01:36]}  gxf5 {[%clk 0:01:30]} 19. Qd2 {[%clk 0:01:30]}  Qc6 {[%clk 0:01:22]} 20. Bh6 {[%clk 0:01:10]}  O-O-O {[%clk 0:01:19]} 21. Bxf8 {[%clk 0:01:08]}  Rdxf8 {[%clk 0:01:18]} 22. Nh5 {[%clk 0:01:07]}  a4 {[%clk 0:01:08]} 23. Nf6 {[%clk 0:00:52]}  Bc4 {[%clk 0:01:07]} 24. Ng5 {[%clk 0:00:42]}  h6 {[%clk 0:01:06]} 25. Nf3 {[%clk 0:00:42]}  Kb7 {[%clk 0:01:03]} 26. Rac1 {[%clk 0:00:39]}  Bb3 {[%clk 0:01:01]} 27. Qf4 {[%clk 0:00:36]}  Qc7 {[%clk 0:00:56]} 28. Qh4 {[%clk 0:00:31]}  Qd8 {[%clk 0:00:55]} 29. Nh5 {[%clk 0:00:26]}  Qxh4 {[%clk 0:00:53]} 30. Nxh4 {[%clk 0:00:25]}  Rfg8 {[%clk 0:00:53]} 31. Nf3 {[%clk 0:00:25]}  Ka6 {[%clk 0:00:46]} 32. Nf4 {[%clk 0:00:24]}  Rg4 {[%clk 0:00:45]} 33. g3 {[%clk 0:00:24]}  Rhg8 {[%clk 0:00:44]} 34. Kh1 {[%clk 0:00:24]}  Rc8 {[%clk 0:00:36]} 35. h3 {[%clk 0:00:24]}  Rgg8 {[%clk 0:00:36]} 36. Kg2 {[%clk 0:00:23]}  Rc7 {[%clk 0:00:33]} 37. Re3 {[%clk 0:00:20]}  Rgc8 {[%clk 0:00:30]} 38. Rce1 {[%clk 0:00:20]}  Nb8 {[%clk 0:00:25]} 39. g4 {[%clk 0:00:20]}  fxg4 {[%clk 0:00:25]} 40. hxg4 {[%clk 0:00:20]}  Nc6 {[%clk 0:00:25]} 41. Kg3 {[%clk 0:00:19]}  cxd4 {[%clk 0:00:26]} 42. Nxd4 {[%clk 0:00:17]}  Nxd4 {[%clk 0:00:26]} 43. cxd4 {[%clk 0:00:17]}  Bc2 {[%clk 0:00:26]} 44. Rh1 {[%clk 0:00:16]}  Rh8 {[%clk 0:00:23]} 45. g5 {[%clk 0:00:15]}  hxg5 {[%clk 0:00:20]} 46. Rxh8 {[%clk 0:00:13]}  gxf4+ {[%clk 0:00:21]} 47. Kxf4 {[%clk 0:00:13]}  Bg6 {[%clk 0:00:22]} 48. Rc3 {[%clk 0:00:13]}  Rd7 {[%clk 0:00:09]} 49. Ra8+ {[%clk 0:00:11]}  Kb5 {[%clk 0:00:09]} 50. Rb8 {[%clk 0:00:10]}  Ra7 {[%clk 0:00:08]} 51. Rc5+ {[%clk 0:00:10]}  Ka6 {[%clk 0:00:08]} 52. Rc6 {[%clk 0:00:10]}  Rb7 {[%clk 0:00:09]} 53. Rxb7 {[%clk 0:00:10]}  Kxb7 {[%clk 0:00:10]} 54. Rc3 {[%clk 0:00:10]}  Ka6 {[%clk 0:00:10]} 55. Kg5 {[%clk 0:00:10]}  Kb5 {[%clk 0:00:11]} 56. Kf6 {[%clk 0:00:10]}  Bh5 {[%clk 0:00:08]} 57. f4 {[%clk 0:00:09]}  Bg6 {[%clk 0:00:07]} 58. Ke7 {[%clk 0:00:10]}  Ka5 {[%clk 0:00:07]} 59. Kd6 {[%clk 0:00:10]}  Kb5 {[%clk 0:00:07]} 60. Kc7 {[%clk 0:00:10]}  Bh5 {[%clk 0:00:08]} 61. Rc6 {[%clk 0:00:08]}  Bg6 {[%clk 0:00:08]} 62. Rxb6+ {[%clk 0:00:08]}  Kc4 {[%clk 0:00:08]} 63. Rb4+ {[%clk 0:00:08]}  Kd3 {[%clk 0:00:09]} 64. Rxa4 {[%clk 0:00:08]}  Kc2 {[%clk 0:00:09]} 65. Rb4 {[%clk 0:00:08]}  Kd3 {[%clk 0:00:10]} 66. a4 {[%clk 0:00:08]} 1-0


[Site "https://www.chess.com"]

[Event "Titled Tuesday Blitz May 31 Late 2022"]
[White "Halkias, Stelios"]
[Black "Martinez Alcantara, Jose Eduardo"]
[WhiteFideId "4201809"]
[BlackFideId "3805662"]
[WhiteElo "2453"]
[BlackElo "2690"]
[Result "1-0"]
[Round "08"]
[TimeControl "180+1"]
[Date "2022.05.31"]
[WhiteClock "0:00:28"]
[BlackClock "0:00:18"]

1. Nf3 {[%clk 0:03:00]}  c5 {[%clk 0:03:00]} 2. c4 {[%clk 0:03:00]}  Nc6 {[%clk 0:03:00]} 3. Nc3 {[%clk 0:03:00]}  e5 {[%clk 0:02:59]} 4. e3 {[%clk 0:03:00]}  Nf6 {[%clk 0:02:57]} 5. Be2 {[%clk 0:02:59]}  Be7 {[%clk 0:02:49]} 6. O-O {[%clk 0:02:58]}  d5 {[%clk 0:02:31]} 7. cxd5 {[%clk 0:02:57]}  Nxd5 {[%clk 0:02:32]} 8. Bb5 {[%clk 0:02:57]}  Nxc3 {[%clk 0:02:14]} 9. dxc3 {[%clk 0:02:56]}  Qc7 {[%clk 0:02:03]} 10. e4 {[%clk 0:02:46]}  O-O {[%clk 0:02:03]} 11. a4 {[%clk 0:02:42]}  Be6 {[%clk 0:02:02]} 12. Ng5 {[%clk 0:02:30]}  Bxg5 {[%clk 0:02:02]} 13. Bxg5 {[%clk 0:02:30]}  a6 {[%clk 0:02:03]} 14. Be2 {[%clk 0:02:17]}  f6 {[%clk 0:02:03]} 15. Be3 {[%clk 0:02:15]}  b6 {[%clk 0:02:03]} 16. Bg4 {[%clk 0:02:05]}  Bxg4 {[%clk 0:01:53]} 17. Qxg4 {[%clk 0:02:04]}  Rfe8 {[%clk 0:01:50]} 18. Rfd1 {[%clk 0:02:03]}  Rad8 {[%clk 0:01:50]} 19. Qe2 {[%clk 0:02:02]}  a5 {[%clk 0:01:45]} 20. Qb5 {[%clk 0:01:54]}  h6 {[%clk 0:01:40]} 21. h3 {[%clk 0:01:54]}  Kh7 {[%clk 0:01:40]} 22. Rd5 {[%clk 0:01:50]}  Na7 {[%clk 0:01:28]} 23. Qd3 {[%clk 0:01:41]}  Rxd5 {[%clk 0:01:12]} 24. Qxd5 {[%clk 0:01:35]}  Rd8 {[%clk 0:01:10]} 25. Qc4 {[%clk 0:01:35]}  Nc8 {[%clk 0:01:05]} 26. Qe6 {[%clk 0:01:25]}  Qd7 {[%clk 0:00:59]} 27. Qb3 {[%clk 0:01:16]}  Qc6 {[%clk 0:00:56]} 28. Qc2 {[%clk 0:01:04]}  Nd6 {[%clk 0:00:50]} 29. Rd1 {[%clk 0:01:03]}  Nf7 {[%clk 0:00:50]} 30. Rd5 {[%clk 0:01:02]}  Kg8 {[%clk 0:00:46]} 31. c4 {[%clk 0:01:02]}  Rxd5 {[%clk 0:00:45]} 32. cxd5 {[%clk 0:00:52]}  Qd7 {[%clk 0:00:45]} 33. f4 {[%clk 0:00:34]}  Nd6 {[%clk 0:00:42]} 34. fxe5 {[%clk 0:00:35]}  fxe5 {[%clk 0:00:43]} 35. Bf2 {[%clk 0:00:35]}  Qe7 {[%clk 0:00:32]} 36. Qd3 {[%clk 0:00:25]}  Qg5 {[%clk 0:00:28]} 37. Qf3 {[%clk 0:00:22]}  Qc1+ {[%clk 0:00:24]} 38. Kh2 {[%clk 0:00:22]}  Qc2 {[%clk 0:00:17]} 39. Bg3 {[%clk 0:00:22]}  Qxe4 {[%clk 0:00:15]} 40. Qxe4 {[%clk 0:00:21]}  Nxe4 {[%clk 0:00:16]} 41. Bxe5 {[%clk 0:00:21]}  c4 {[%clk 0:00:12]} 42. Bd4 {[%clk 0:00:20]}  Nf6 {[%clk 0:00:08]} 43. Bxb6 {[%clk 0:00:19]}  Nxd5 {[%clk 0:00:07]} 44. Bxa5 {[%clk 0:00:20]}  Kf7 {[%clk 0:00:08]} 45. Bd2 {[%clk 0:00:20]}  Ke6 {[%clk 0:00:08]} 46. a5 {[%clk 0:00:20]}  Kd6 {[%clk 0:00:07]} 47. Kg3 {[%clk 0:00:21]}  Kc6 {[%clk 0:00:06]} 48. Kf3 {[%clk 0:00:21]}  Nf6 {[%clk 0:00:05]} 49. Kf4 {[%clk 0:00:21]}  Nd7 {[%clk 0:00:06]} 50. Kf5 {[%clk 0:00:21]}  Nc5 {[%clk 0:00:06]} 51. Bc3 {[%clk 0:00:21]}  Nd3 {[%clk 0:00:05]} 52. Kg6 {[%clk 0:00:22]}  Nf4+ {[%clk 0:00:03]} 53. Kxg7 {[%clk 0:00:22]}  h5 {[%clk 0:00:04]} 54. Kh6 {[%clk 0:00:22]}  h4 {[%clk 0:00:05]} 55. Kg5 {[%clk 0:00:22]}  Nxg2 {[%clk 0:00:05]} 56. Kg4 {[%clk 0:00:23]}  Ne3+ {[%clk 0:00:06]} 57. Kxh4 {[%clk 0:00:23]}  Kd5 {[%clk 0:00:05]} 58. Kg5 {[%clk 0:00:23]}  Kd6 {[%clk 0:00:06]} 59. h4 {[%clk 0:00:24]}  Ke6 {[%clk 0:00:06]} 60. h5 {[%clk 0:00:24]}  Kf7 {[%clk 0:00:07]} 61. h6 {[%clk 0:00:25]}  Nd5 {[%clk 0:00:08]} 62. h7 {[%clk 0:00:24]}  Nxc3 {[%clk 0:00:09]} 63. bxc3 {[%clk 0:00:24]}  Kg7 {[%clk 0:00:09]} 64. a6 {[%clk 0:00:25]}  Kh8 {[%clk 0:00:10]} 65. a7 {[%clk 0:00:26]}  Kg7 {[%clk 0:00:11]} 66. a8=Q {[%clk 0:00:26]}  Kxh7 {[%clk 0:00:12]} 67. Qd5 {[%clk 0:00:26]}  Kg7 {[%clk 0:00:13]} 68. Qxc4 {[%clk 0:00:27]}  Kf8 {[%clk 0:00:12]} 69. Qd5 {[%clk 0:00:26]}  Ke8 {[%clk 0:00:13]} 70. c4 {[%clk 0:00:27]}  Kf8 {[%clk 0:00:14]} 71. c5 {[%clk 0:00:27]}  Ke8 {[%clk 0:00:15]} 72. c6 {[%clk 0:00:28]}  Kf8 {[%clk 0:00:16]} 73. c7 {[%clk 0:00:28]}  Ke8 {[%clk 0:00:17]} 74. c8=Q+ {[%clk 0:00:28]}  Ke7 {[%clk 0:00:18]} 75. Qde6# {[%clk 0:00:28]} 1-0


[Site "https://www.chess.com"]

[Event "Titled Tuesday Blitz May 31 Late 2022"]
[White "Harish, Neeraj"]
[Black "Gomez Dieguez, David"]
[WhiteFideId "30958130"]
[BlackFideId "22223630"]
[WhiteElo "1574"]
[BlackElo "2115"]
[Result "0-1"]
[Round "08"]
[TimeControl "180+1"]
[Date "2022.06.01"]
[WhiteClock "0:00:04"]
[BlackClock "0:00:18"]

1. e4 {[%clk 0:03:00]}  c6 {[%clk 0:02:59]} 2. d4 {[%clk 0:03:00]}  d5 {[%clk 0:03:00]} 3. e5 {[%clk 0:03:01]}  c5 {[%clk 0:03:00]} 4. dxc5 {[%clk 0:03:00]}  e6 {[%clk 0:03:00]} 5. Nf3 {[%clk 0:02:54]}  Bxc5 {[%clk 0:02:59]} 6. a3 {[%clk 0:02:55]}  Nd7 {[%clk 0:02:56]} 7. b4 {[%clk 0:02:51]}  Be7 {[%clk 0:02:57]} 8. Bd3 {[%clk 0:02:49]}  f6 {[%clk 0:02:56]} 9. Bb2 {[%clk 0:02:47]}  Nh6 {[%clk 0:02:57]} 10. O-O {[%clk 0:02:46]}  Nf7 {[%clk 0:02:57]} 11. Re1 {[%clk 0:02:44]}  O-O {[%clk 0:02:52]} 12. Nbd2 {[%clk 0:02:28]}  Ndxe5 {[%clk 0:02:52]} 13. Nxe5 {[%clk 0:02:27]}  fxe5 {[%clk 0:02:52]} 14. Qh5 {[%clk 0:02:03]}  h6 {[%clk 0:02:32]} 15. Qg6 {[%clk 0:01:44]}  Nh8 {[%clk 0:02:21]} 16. Qh7+ {[%clk 0:01:41]}  Kf7 {[%clk 0:02:21]} 17. Bxe5 {[%clk 0:01:41]}  Bf6 {[%clk 0:02:18]} 18. Be2 {[%clk 0:01:05]}  Bxe5 {[%clk 0:02:04]} 19. Bh5+ {[%clk 0:01:03]}  Ke7 {[%clk 0:01:56]} 20. Rxe5 {[%clk 0:00:59]}  Kd6 {[%clk 0:01:57]} 21. Qxg7 {[%clk 0:00:49]}  Qf6 {[%clk 0:01:54]} 22. Qxf6 {[%clk 0:00:24]}  Rxf6 {[%clk 0:01:55]} 23. Rae1 {[%clk 0:00:24]}  Bd7 {[%clk 0:01:55]} 24. Nf3 {[%clk 0:00:20]}  a5 {[%clk 0:01:49]} 25. Nd4 {[%clk 0:00:19]}  axb4 {[%clk 0:01:45]} 26. axb4 {[%clk 0:00:19]}  Rg8 {[%clk 0:01:25]} 27. h3 {[%clk 0:00:15]}  Rg5 {[%clk 0:01:25]} 28. Rxg5 {[%clk 0:00:14]}  hxg5 {[%clk 0:01:26]} 29. Bg4 {[%clk 0:00:15]}  Ng6 {[%clk 0:01:16]} 30. Nf3 {[%clk 0:00:14]}  Rf4 {[%clk 0:01:02]} 31. Nxg5 {[%clk 0:00:07]}  Rxb4 {[%clk 0:01:02]} 32. Nxe6 {[%clk 0:00:06]}  Ne5 {[%clk 0:00:58]} 33. Ng5 {[%clk 0:00:03]}  Nxg4 {[%clk 0:00:55]} 34. hxg4 {[%clk 0:00:04]}  Rxg4 {[%clk 0:00:55]} 35. Nf3 {[%clk 0:00:05]}  Rc4 {[%clk 0:00:50]} 36. Ne5 {[%clk 0:00:05]}  Rxc2 {[%clk 0:00:48]} 37. Nxd7 {[%clk 0:00:05]}  Kxd7 {[%clk 0:00:48]} 38. g4 {[%clk 0:00:05]}  b5 {[%clk 0:00:43]} 39. Rb1 {[%clk 0:00:06]}  Kc6 {[%clk 0:00:42]} 40. Kg2 {[%clk 0:00:07]}  d4 {[%clk 0:00:40]} 41. Kf3 {[%clk 0:00:07]}  Rc3+ {[%clk 0:00:33]} 42. Ke4 {[%clk 0:00:07]}  Kc5 {[%clk 0:00:33]} 43. Rd1 {[%clk 0:00:06]}  Rc2 {[%clk 0:00:32]} 44. Kd3 {[%clk 0:00:04]}  Rxf2 {[%clk 0:00:31]} 45. Ke4 {[%clk 0:00:04]}  Re2+ {[%clk 0:00:30]} 46. Kf3 {[%clk 0:00:04]}  Re3+ {[%clk 0:00:30]} 47. Kf4 {[%clk 0:00:04]}  Re8 {[%clk 0:00:27]} 48. g5 {[%clk 0:00:04]}  Kc4 {[%clk 0:00:20]} 49. g6 {[%clk 0:00:04]}  d3 {[%clk 0:00:20]} 50. Kf5 {[%clk 0:00:04]}  Kc3 {[%clk 0:00:20]} 51. g7 {[%clk 0:00:03]}  d2 {[%clk 0:00:21]} 52. Rf1 {[%clk 0:00:01]}  Kc2 {[%clk 0:00:18]} 53. Kg6 {[%clk 0:00:02]}  Rg8 {[%clk 0:00:18]} 54. Rf8 {[%clk 0:00:02]}  Rxg7+ {[%clk 0:00:17]} 55. Kxg7 {[%clk 0:00:03]}  d1=Q {[%clk 0:00:18]} 56. Rc8+ {[%clk 0:00:04]}  Kb3 {[%clk 0:00:18]} 0-1


[Site "https://www.chess.com"]

[Event "Titled Tuesday Blitz May 31 Late 2022"]
[White "Hess, Robert"]
[Black "Kollars, Dmitrij"]
[WhiteFideId "2022036"]
[BlackFideId "12909572"]
[WhiteElo "2557"]
[BlackElo "2584"]
[Result "0-1"]
[Round "08"]
[TimeControl "180+1"]
[Date "2022.05.31"]
[WhiteClock "0:00:05"]
[BlackClock "0:00:54"]

1. e4 {[%clk 0:02:59]}  c6 {[%clk 0:02:58]} 2. Nc3 {[%clk 0:03:00]}  d5 {[%clk 0:02:59]} 3. d4 {[%clk 0:03:01]}  dxe4 {[%clk 0:02:59]} 4. Nxe4 {[%clk 0:03:02]}  Nf6 {[%clk 0:02:59]} 5. Nxf6+ {[%clk 0:03:02]}  exf6 {[%clk 0:03:00]} 6. c3 {[%clk 0:03:03]}  Bd6 {[%clk 0:03:00]} 7. Bd3 {[%clk 0:03:03]}  O-O {[%clk 0:02:59]} 8. Ne2 {[%clk 0:03:04]}  c5 {[%clk 0:02:58]} 9. Be3 {[%clk 0:03:02]}  Qc7 {[%clk 0:02:53]} 10. Qc2 {[%clk 0:02:56]}  g6 {[%clk 0:02:53]} 11. dxc5 {[%clk 0:02:53]}  Bxc5 {[%clk 0:02:53]} 12. Bxc5 {[%clk 0:02:54]}  Qxc5 {[%clk 0:02:54]} 13. O-O {[%clk 0:02:54]}  Nc6 {[%clk 0:02:53]} 14. Rad1 {[%clk 0:02:51]}  Bg4 {[%clk 0:02:41]} 15. h3 {[%clk 0:02:46]}  Bxe2 {[%clk 0:02:40]} 16. Bxe2 {[%clk 0:02:46]}  Kg7 {[%clk 0:02:26]} 17. Rd7 {[%clk 0:02:36]}  b6 {[%clk 0:02:20]} 18. Rfd1 {[%clk 0:02:21]}  Ne5 {[%clk 0:02:19]} 19. R7d5 {[%clk 0:02:11]}  Qe7 {[%clk 0:02:18]} 20. Qd2 {[%clk 0:01:51]}  Rac8 {[%clk 0:02:07]} 21. f4 {[%clk 0:01:51]}  Nc4 {[%clk 0:02:06]} 22. Bxc4 {[%clk 0:01:51]}  Rxc4 {[%clk 0:02:07]} 23. a3 {[%clk 0:01:05]}  Re4 {[%clk 0:02:03]} 24. Rd7 {[%clk 0:01:03]}  Qc5+ {[%clk 0:02:02]} 25. Qf2 {[%clk 0:00:35]}  Qb5 {[%clk 0:01:16]} 26. R1d2 {[%clk 0:00:27]}  Rfe8 {[%clk 0:01:05]} 27. R7d3 {[%clk 0:00:11]}  Qf5 {[%clk 0:01:00]} 28. Rd4 {[%clk 0:00:10]}  Re1+ {[%clk 0:00:57]} 29. Kh2 {[%clk 0:00:11]}  Qb1 {[%clk 0:00:55]} 30. Rd7 {[%clk 0:00:05]}  R8e3 {[%clk 0:00:54]} 0-1


[Site "https://www.chess.com"]

[Event "Titled Tuesday Blitz May 31 Late 2022"]
[White "Hirneise, Jens"]
[Black "Korchmar, Vasiliy"]
[WhiteFideId "24614734"]
[BlackFideId "24131750"]
[WhiteElo "2359"]
[BlackElo "2370"]
[Result "0-1"]
[Round "08"]
[TimeControl "180+1"]
[Date "2022.06.01"]
[WhiteClock "0:00:02"]
[BlackClock "0:00:02"]

1. d4 {[%clk 0:02:56]}  Nf6 {[%clk 0:02:59]} 2. c4 {[%clk 0:02:56]}  c6 {[%clk 0:02:59]} 3. Nc3 {[%clk 0:02:51]}  d5 {[%clk 0:03:00]} 4. cxd5 {[%clk 0:02:52]}  cxd5 {[%clk 0:03:01]} 5. Bf4 {[%clk 0:02:52]}  Nc6 {[%clk 0:03:01]} 6. e3 {[%clk 0:02:53]}  Bg4 {[%clk 0:02:58]} 7. Qb3 {[%clk 0:02:49]}  Na5 {[%clk 0:02:58]} 8. Qa4+ {[%clk 0:02:48]}  Bd7 {[%clk 0:02:59]} 9. Bb5 {[%clk 0:02:48]}  Nc6 {[%clk 0:02:58]} 10. Qb3 {[%clk 0:02:38]}  Na5 {[%clk 0:02:49]} 11. Qa4 {[%clk 0:02:38]}  Nc6 {[%clk 0:02:49]} 12. Qb3 {[%clk 0:02:37]}  a6 {[%clk 0:02:48]} 13. Bxc6 {[%clk 0:02:37]}  Bxc6 {[%clk 0:02:49]} 14. Nf3 {[%clk 0:02:38]}  e6 {[%clk 0:02:42]} 15. Ne5 {[%clk 0:02:38]}  Be7 {[%clk 0:02:35]} 16. O-O {[%clk 0:02:32]}  O-O {[%clk 0:02:35]} 17. Nxc6 {[%clk 0:02:30]}  bxc6 {[%clk 0:02:36]} 18. Na4 {[%clk 0:02:30]}  Ne4 {[%clk 0:02:33]} 19. Rfc1 {[%clk 0:02:28]}  Bd6 {[%clk 0:02:00]} 20. Rxc6 {[%clk 0:02:14]}  Bxf4 {[%clk 0:01:59]} 21. exf4 {[%clk 0:02:14]}  Rb8 {[%clk 0:01:48]} 22. Qe3 {[%clk 0:02:08]}  Rb4 {[%clk 0:01:30]} 23. b3 {[%clk 0:02:05]}  Nd6 {[%clk 0:01:29]} 24. Qc3 {[%clk 0:01:56]}  a5 {[%clk 0:01:29]} 25. Rd1 {[%clk 0:01:51]}  Nb5 {[%clk 0:01:19]} 26. Qc5 {[%clk 0:01:47]}  h5 {[%clk 0:01:07]} 27. Rb6 {[%clk 0:01:39]}  Qd7 {[%clk 0:00:46]} 28. Rc1 {[%clk 0:01:01]}  Nxd4 {[%clk 0:00:33]} 29. Rxb4 {[%clk 0:00:56]}  Ne2+ {[%clk 0:00:33]} 30. Kf1 {[%clk 0:00:56]}  Nxc1 {[%clk 0:00:34]} 31. Nb6 {[%clk 0:00:26]}  Qa7 {[%clk 0:00:21]} 32. Rb5 {[%clk 0:00:16]}  Nd3 {[%clk 0:00:15]} 33. Qe3 {[%clk 0:00:16]}  Nb4 {[%clk 0:00:11]} 34. Nxd5 {[%clk 0:00:12]}  Qa6 {[%clk 0:00:07]} 35. Ne7+ {[%clk 0:00:09]}  Kh8 {[%clk 0:00:06]} 36. Qe2 {[%clk 0:00:07]}  g6 {[%clk 0:00:04]} 37. a3 {[%clk 0:00:08]}  Nd5 {[%clk 0:00:03]} 38. Nxd5 {[%clk 0:00:05]}  exd5 {[%clk 0:00:04]} 39. Rxd5 {[%clk 0:00:05]}  Qc6 {[%clk 0:00:03]} 40. Qc4 {[%clk 0:00:05]}  Qe6 {[%clk 0:00:03]} 41. Re5 {[%clk 0:00:03]}  Qd6 {[%clk 0:00:02]} 42. Qc3 {[%clk 0:00:02]}  Kg8 {[%clk 0:00:02]} 0-1


[Site "https://www.chess.com"]

[Event "Titled Tuesday Blitz May 31 Late 2022"]
[White "Indjic, Aleksandar"]
[Black "Urazayev, Arystanbek"]
[WhiteFideId "911925"]
[BlackFideId "13709810"]
[WhiteElo "2616"]
[BlackElo "2422"]
[Result "1-0"]
[Round "08"]
[TimeControl "180+1"]
[Date "2022.05.31"]
[WhiteClock "0:00:43"]
[BlackClock "0:00:11"]

1. d4 {[%clk 0:03:00]}  Nf6 {[%clk 0:02:59]} 2. Nf3 {[%clk 0:03:01]}  e6 {[%clk 0:03:00]} 3. Bf4 {[%clk 0:02:59]}  d5 {[%clk 0:03:00]} 4. e3 {[%clk 0:02:58]}  c5 {[%clk 0:03:01]} 5. Nbd2 {[%clk 0:02:56]}  Nc6 {[%clk 0:03:00]} 6. c3 {[%clk 0:02:52]}  Nh5 {[%clk 0:03:01]} 7. Bg5 {[%clk 0:02:49]}  Qb6 {[%clk 0:03:00]} 8. Qc2 {[%clk 0:02:44]}  h6 {[%clk 0:03:01]} 9. Bh4 {[%clk 0:02:42]}  g5 {[%clk 0:03:01]} 10. Bg3 {[%clk 0:02:34]}  Nxg3 {[%clk 0:03:01]} 11. hxg3 {[%clk 0:02:34]}  Bg7 {[%clk 0:03:01]} 12. Be2 {[%clk 0:02:19]}  Bd7 {[%clk 0:03:02]} 13. a4 {[%clk 0:02:14]}  g4 {[%clk 0:02:54]} 14. Nh4 {[%clk 0:02:00]}  h5 {[%clk 0:02:52]} 15. a5 {[%clk 0:02:00]}  Nxa5 {[%clk 0:02:49]} 16. dxc5 {[%clk 0:02:00]}  Qc7 {[%clk 0:02:37]} 17. b4 {[%clk 0:02:00]}  Nc6 {[%clk 0:02:37]} 18. Rb1 {[%clk 0:02:00]}  Qe5 {[%clk 0:02:17]} 19. Rc1 {[%clk 0:01:57]}  a5 {[%clk 0:02:17]} 20. b5 {[%clk 0:01:53]}  Ne7 {[%clk 0:02:17]} 21. c4 {[%clk 0:01:53]}  d4 {[%clk 0:01:49]} 22. exd4 {[%clk 0:01:37]}  Qxd4 {[%clk 0:01:50]} 23. Ne4 {[%clk 0:01:35]}  Qb2 {[%clk 0:00:59]} 24. Qd1 {[%clk 0:01:26]}  O-O-O {[%clk 0:00:41]} 25. O-O {[%clk 0:01:21]}  Kb8 {[%clk 0:00:36]} 26. Qd6+ {[%clk 0:01:18]}  Ka8 {[%clk 0:00:33]} 27. Qxe7 {[%clk 0:01:17]}  Qxe2 {[%clk 0:00:31]} 28. Nd6 {[%clk 0:01:17]}  Bd4 {[%clk 0:00:20]} 29. Nxf7 {[%clk 0:01:09]}  Rhe8 {[%clk 0:00:20]} 30. Qd6 {[%clk 0:01:03]}  Bf6 {[%clk 0:00:16]} 31. Nxd8 {[%clk 0:01:00]}  Rxd8 {[%clk 0:00:17]} 32. Qf4 {[%clk 0:00:59]}  Rf8 {[%clk 0:00:16]} 33. c6 {[%clk 0:00:52]}  bxc6 {[%clk 0:00:15]} 34. Qd6 {[%clk 0:00:53]}  Rd8 {[%clk 0:00:12]} 35. bxc6 {[%clk 0:00:50]}  Bc8 {[%clk 0:00:12]} 36. Qc7 {[%clk 0:00:50]}  Qd2 {[%clk 0:00:11]} 37. Rb1 {[%clk 0:00:48]}  Ba6 {[%clk 0:00:11]} 38. Rb6 {[%clk 0:00:43]} 1-0


[Site "https://www.chess.com"]